bitfinex-derivatives/quotes_BTCF0:USTF0_20250719
["timestamp","ask_amount","ask_price","bid_price","bid_amount"]
[1752913122009,1.15416118,118200.0,118190.0,0.99398433]
[1752913122902,1.07478118,118200.0,118190.0,0.99398433]
[1752913124408,1.15416118,118200.0,118190.0,0.99398433]
[1752913127107,1.07478118,118200.0,118190.0,0.99398433]
[1752913128507,1.15416118,118200.0,118190.0,0.99398433]
[1752913129509,1.15416118,118200.0,118190.0,0.84513307]
[1752913130406,1.15416118,118200.0,118190.0,0.99398433]
[1752913131007,1.15416118,118200.0,118190.0,0.84513307]
[1752913131709,1.15416118,118200.0,118190.0,0.99398433]
[1752913134110,1.07478118,118200.0,118190.0,0.99398433]
[1752913135012,1.15416118,118200.0,118190.0,0.99398433]
[1752913136312,1.07478118,118200.0,118190.0,0.99398433]
[1752913137515,1.07478118,118200.0,118190.0,0.69628181]
[1752913137714,1.07478118,118200.0,118190.0,0.99398433]
[1752913145421,1.07478118,118200.0,118190.0,0.99353848]
[1752913146025,0.98457118,118200.0,118190.0,0.99353848]
[1752913147823,1.04402118,118200.0,118190.0,0.99353848]
[1752913150026,1.07232118,118200.0,118190.0,0.99353848]
[1752913150527,0.46528118,118200.0,118190.0,0.99353848]
[1752913150727,1.07128118,118200.0,118190.0,0.99353848]
[1752913153632,1.4621737,118200.0,118190.0,0.23510399]
[1752913153830,1.6312716,118200.0,118190.0,0.40421619]
[1752913154631,1.6312716,118200.0,118190.0,0.71677745]
[1752913154632,1.16447118,118200.0,118190.0,0.71677745]
[1752913154831,1.48242044,118200.0,118190.0,0.76021745]
[1752913155032,1.33356918,118200.0,118190.0,0.76021745]
[1752913155232,1.48242044,118200.0,118190.0,0.76021745]
[1752913155433,1.48242044,118200.0,118190.0,0.71577745]
[1752913155635,1.48242044,118200.0,118190.0,0.71477745]
[1752913156535,1.33356918,118200.0,118190.0,0.71477745]
[1752913156832,1.48242044,118200.0,118190.0,0.71477745]
[1752913157735,1.84322044,118200.0,118190.0,0.71477745]
[1752913158938,1.69436918,118200.0,118190.0,0.56592619]
[1752913159738,0.97276918,118200.0,118190.0,0.56592619]
[1752913160038,1.69436918,118200.0,118190.0,0.56592619]
[1752913161831,1.89287333,118200.0,118190.0,0.56592619]
[1752913162842,1.08836918,118200.0,118190.0,0.56592619]
[1752913163043,1.89247333,118200.0,118190.0,0.56592619]
[1752913164338,1.89247333,118200.0,118190.0,0.40221619]
[1752913164538,1.89247333,118200.0,118190.0,0.30902619]
[1752913165839,1.89247333,118200.0,118190.0,0.13991399]
[1752913166144,2.59479142,118200.0,118190.0,0.13991399]
[1752913166538,2.59479142,118200.0,118190.0,0.30902629]
[1752913166741,2.39628727,118200.0,118190.0,0.30902629]
[1752913167236,2.14628727,118200.0,118190.0,0.30902629]
[1752913169144,1.94778312,118200.0,118190.0,0.30902629]
[1752913169345,2.14628727,118200.0,118190.0,0.30902629]
[1752913172943,1.54068727,118200.0,118190.0,0.30902629]
[1752913173140,2.14600727,118200.0,118190.0,0.30902629]
[1752913174751,1.97679927,118200.0,118190.0,0.30902629]
[1752913175547,2.14600727,118200.0,118190.0,0.30902749]
[1752913175749,1.97679927,118200.0,118190.0,0.30902749]
[1752913179145,1.77829512,118200.0,118190.0,0.45291749]
[1752913179450,1.97679927,118200.0,118190.0,0.45291749]
[1752913180346,1.97679927,118200.0,118190.0,0.40556749]
[1752913180650,1.97679927,118200.0,118190.0,0.30902749]
[1752913180950,2.07612602,118200.0,118190.0,0.30902749]
[1752913181250,2.07610776,118200.0,118190.0,0.30902749]
[1752913181952,2.07610776,118200.0,118190.0,0.45291749]
[1752913184049,1.35450776,118200.0,118190.0,0.45291749]
[1752913184253,2.07610776,118200.0,118190.0,0.45291749]
[1752913184754,2.07610776,118200.0,118190.0,0.30902749]
[1752913185345,2.07610776,118200.0,118190.0,0.45291749]
[1752913187359,2.1367837,118200.0,118190.0,0.45291749]
[1752913189655,2.07610776,118200.0,118190.0,0.45291749]
[1752913192764,2.1367837,118200.0,118190.0,0.45291749]
[1752913193263,1.8389528,118200.0,118190.0,0.45291749]
[1752913193453,2.1367837,118200.0,118190.0,0.45291749]
[1752913193965,2.07610776,118200.0,118190.0,0.45291749]
[1752913195061,2.07610776,118200.0,118190.0,0.47719749]
[1752913195659,1.77827686,118200.0,118190.0,0.49467947]
[1752913195864,2.07610776,118200.0,118190.0,0.49467947]
[1752913196964,1.77827686,118200.0,118190.0,0.49467947]
[1752913197167,2.07610776,118200.0,118190.0,0.49467947]
[1752913197865,2.1367837,118200.0,118190.0,0.49467947]
[1752913200969,1.8389528,118200.0,118190.0,0.49467947]
[1752913201268,2.1367837,118200.0,118190.0,0.49467947]
[1752913203870,1.8389528,118200.0,118190.0,0.49467947]
[1752913204070,2.1367837,118200.0,118190.0,0.49467947]
[1752913206373,2.1367837,118200.0,118190.0,0.52504947]
[1752913206573,2.1367837,118200.0,118190.0,0.58254947]
[1752913207874,2.07610776,118200.0,118190.0,0.58254947]
[1752913210074,2.07610776,118200.0,118190.0,0.59462947]
[1752913212776,1.68508686,118200.0,118190.0,0.59462947]
[1752913212976,1.98291776,118200.0,118190.0,0.59462947]
[1752913215478,2.0435937,118200.0,118190.0,0.59462947]
[1752913216885,1.68508686,118200.0,118190.0,0.59462947]
[1752913217075,1.98291776,118200.0,118190.0,0.59462947]
[1752913218081,1.26131776,118200.0,118190.0,0.59462947]
[1752913218286,1.98291776,118200.0,118190.0,0.59462947]
[1752913223182,2.0435937,118200.0,118190.0,0.59462947]
[1752913223679,1.7457628,118200.0,118190.0,0.59462947]
[1752913223883,2.0435937,118200.0,118190.0,0.59462947]
[1752913230788,1.7457628,118200.0,118190.0,0.59462947]
[1752913230991,2.0435937,118200.0,118190.0,0.59462947]
[1752913233785,1.4382737,118200.0,118190.0,0.59462947]
[1752913233994,1.18456976,118200.0,118190.0,0.74354492]
[1752913234189,1.63897431,118200.0,118190.0,0.74354492]
[1752913234484,1.78788976,118200.0,118190.0,0.74354492]
[1752913235190,1.78788976,118200.0,118190.0,0.59462947]
[1752913235385,1.42938292,118200.0,118190.0,0.74354492]
[1752913235593,1.34159292,118200.0,118190.0,0.89046037]
[1752913235787,1.34159292,118200.0,118190.0,0.74154492]
[1752913237291,1.34155292,118200.0,118190.0,0.74154492]
[1752913238199,1.34155292,118200.0,118190.0,0.59262947]
[1752913238695,1.34155292,118200.0,118190.0,0.74154492]
[1752913240996,1.34139292,118200.0,118190.0,0.74154492]
[1752913245005,0.73831292,118200.0,118190.0,0.74154492]
[1752913245204,1.34115292,118200.0,118190.0,0.74154492]
[1752913245504,0.73831292,118200.0,118190.0,0.74154492]
[1752913245706,1.34115292,118200.0,118190.0,0.74154492]
[1752913249405,1.34115292,118200.0,118190.0,0.59262947]
[1752913249604,1.34115292,118200.0,118190.0,0.74154492]
[1752913258911,1.49006837,118200.0,118190.0,0.74154492]
[1752913259110,1.49006837,118200.0,118190.0,0.59262947]
[1752913259310,1.49006837,118200.0,118190.0,0.74154492]
[1752913262511,1.80808362,118200.0,118190.0,0.59262947]
[1752913262917,1.65916817,118200.0,118190.0,0.74154492]
[1752913263811,1.34115292,118200.0,118190.0,0.74154492]
[1752913264008,1.49006837,118200.0,118190.0,0.74154492]
[1752913264319,1.34115292,118200.0,118190.0,0.74154492]
[1752913264518,1.65916817,118200.0,118190.0,0.59262947]
[1752913264714,1.65916817,118200.0,118190.0,0.74154492]
[1752913264914,1.49006837,118200.0,118190.0,0.74154492]
[1752913267417,1.49006837,118200.0,118190.0,0.59262947]
[1752913267618,1.34115292,118200.0,118190.0,0.74154492]
[1752913267818,1.49006837,118200.0,118190.0,0.74154492]
[1752913270612,0.73831292,118200.0,118190.0,0.89046037]
[1752913270818,1.31316052,118200.0,118190.0,0.89046037]
[1752913271310,1.31316052,118200.0,118190.0,1.18566037]
[1752913272112,0.35056052,118200.0,118190.0,1.18566037]
[1752913272314,0.95232052,118200.0,118190.0,1.18566037]
[1752913272625,0.95232052,118200.0,118190.0,1.18766037]
[1752913274123,0.95232052,118200.0,118190.0,1.25497209]
[1752913277621,0.35056052,118200.0,118190.0,1.25497209]
[1752913277821,0.3796804,118220.0,118210.0,0.4274055]
[1752913278017,0.9811604,118220.0,118210.0,0.57632095]
[1752913280127,0.9811604,118220.0,118210.0,0.71423494]
[1752913280329,0.9811604,118220.0,118210.0,0.54514944]
[1752913280928,0.9820004,118220.0,118210.0,0.69406489]
[1752913281123,0.9820004,118220.0,118210.0,0.54514944]
[1752913281730,0.9820004,118220.0,118210.0,0.69406489]
[1752913281929,0.9820004,118220.0,118210.0,0.54514944]
[1752913282329,0.9830004,118220.0,118210.0,0.54514944]
[1752913285730,0.99964667,118220.0,118210.0,0.54514944]
[1752913287333,0.99964667,118220.0,118210.0,0.71423414]
[1752913287735,0.99964667,118220.0,118210.0,0.56531869]
[1752913288033,0.99964667,118220.0,118210.0,0.71423414]
[1752913289229,0.99964667,118220.0,118210.0,0.56531869]
[1752913289434,0.99964667,118220.0,118210.0,0.71423414]
[1752913292636,0.99964667,118220.0,118210.0,0.56531869]
[1752913292836,0.99964667,118220.0,118210.0,0.71423414]
[1752913294737,0.63884667,118220.0,118210.0,0.71423414]
[1752913294937,0.99964667,118220.0,118210.0,0.71423414]
[1752913295537,0.99964667,118220.0,118210.0,0.56531869]
[1752913295743,0.99964667,118220.0,118210.0,0.71423414]
[1752913299744,0.99964667,118220.0,118210.0,0.56531869]
[1752913300144,0.99964667,118220.0,118210.0,0.71423414]
[1752913303849,0.39832667,118220.0,118210.0,0.71423414]
[1752913304147,0.99864667,118220.0,118210.0,0.71423414]
[1752913305045,0.99864667,118220.0,118210.0,0.56531869]
[1752913305245,0.99864667,118220.0,118210.0,0.71423414]
[1752913309754,0.63784667,118220.0,118210.0,0.71423414]
[1752913309955,0.99864667,118220.0,118210.0,0.71423414]
[1752913310853,0.63784667,118220.0,118210.0,0.71423414]
[1752913311059,0.99864667,118220.0,118210.0,0.56531869]
[1752913311358,0.99864667,118220.0,118210.0,0.71423414]
[1752913314756,0.63784667,118220.0,118210.0,0.71423414]
[1752913314958,0.99864667,118220.0,118210.0,0.71423414]
[1752913318460,0.99864667,118220.0,118210.0,0.56531869]
[1752913318654,0.99864667,118220.0,118210.0,0.71423414]
[1752913324857,0.99864667,118220.0,118210.0,0.56531869]
[1752913325064,0.99864667,118220.0,118210.0,0.71423414]
[1752913328771,0.63784667,118220.0,118210.0,0.71423414]
[1752913328973,0.99864667,118220.0,118210.0,0.71423414]
[1752913330473,0.99864667,118220.0,118210.0,0.56531869]
[1752913330771,0.99864667,118220.0,118210.0,0.71423414]
[1752913333775,0.63784667,118220.0,118210.0,0.71423414]
[1752913333977,0.99864667,118220.0,118210.0,0.71423414]
[1752913337680,0.63784667,118220.0,118210.0,0.71423414]
[1752913337979,0.99864667,118220.0,118210.0,0.71423414]
[1752913339177,0.99732667,118220.0,118210.0,0.86314959]
[1752913341075,0.99728667,118220.0,118210.0,0.86314959]
[1752913342379,0.3608,118230.0,118220.0,0.4299212]
[1752913342569,0.95964,118230.0,118220.0,0.74479943]
[1752913344276,0.59884,118230.0,118220.0,0.74479943]
[1752913344482,0.59984,118230.0,118220.0,0.74479943]
[1752913344684,0.59984,118230.0,118220.0,0.89371488]
[1752913345481,0.59984,118230.0,118220.0,1.03162887]
[1752913345674,0.59984,118230.0,118220.0,1.68762887]
[1752913345875,0.95948,118240.0,118230.0,0.4299068]
[1752913346074,0.95948,118240.0,118230.0,0.7277377]
[1752913347484,0.59868,118240.0,118230.0,0.7277377]
[1752913347885,0.60168,118240.0,118230.0,0.7277377]
[1752913349380,0.60168,118240.0,118230.0,0.4299068]
[1752913349580,0.60168,118240.0,118230.0,0.7277377]
[1752913349882,0.60168,118240.0,118230.0,0.73647887]
[1752913350282,0.60168,118240.0,118230.0,0.87439286]
[1752913350984,0.60168,118240.0,118230.0,1.16959286]
[1752913354386,0.61824884,118240.0,118230.0,1.16959286]
[1752913359482,0.61524884,118240.0,118230.0,1.17159286]
[1752913371597,0.61524884,118240.0,118230.0,0.87376196]
[1752913371798,0.61524884,118240.0,118230.0,1.17159286]
[1752913372297,0.61428884,118240.0,118230.0,1.17159286]
[1752913386507,0.78333134,118240.0,118230.0,0.96425741]
[1752913386707,1.27291974,118240.0,118230.0,0.52014196]
[1752913386908,1.12400429,118240.0,118230.0,0.62482741]
[1752913390014,1.12400429,118240.0,118230.0,0.65672741]
[1752913390203,1.12400429,118240.0,118230.0,0.71360741]
[1752913390512,1.12400429,118240.0,118230.0,0.72502741]
[1752913391713,1.12400429,118240.0,118230.0,0.57611196]
[1752913392010,1.12400429,118240.0,118230.0,0.72502741]
[1752913396115,1.12400429,118240.0,118230.0,0.57611196]
[1752913396415,1.12400429,118240.0,118230.0,0.72502741]
[1752913399320,1.12400429,118240.0,118230.0,0.57611196]
[1752913399526,1.12400429,118240.0,118230.0,0.72502741]
[1752913400920,0.76320429,118240.0,118230.0,0.72502741]
[1752913401120,1.12400429,118240.0,118230.0,0.72502741]
[1752913401721,1.12400429,118240.0,118230.0,0.57611196]
[1752913401919,1.12400429,118240.0,118230.0,0.72502741]
[1752913404323,0.97508884,118240.0,118230.0,0.72502741]
[1752913404625,1.12400429,118240.0,118230.0,0.72502741]
[1752913406826,0.76320429,118240.0,118230.0,0.72502741]
[1752913407022,1.12400429,118240.0,118230.0,0.72502741]
[1752913407223,0.97508884,118240.0,118230.0,0.72502741]
[1752913407426,1.12400429,118240.0,118230.0,0.72502741]
[1752913407627,1.12400429,118240.0,118230.0,0.57611196]
[1752913407927,1.12400429,118240.0,118230.0,0.72502741]
[1752913409129,0.97508884,118240.0,118230.0,0.72502741]
[1752913409428,1.12400429,118240.0,118230.0,0.72502741]
[1752913409627,1.12400429,118240.0,118230.0,0.57611196]
[1752913409822,1.12400429,118240.0,118230.0,0.72502741]
[1752913426739,0.76320429,118240.0,118230.0,0.72502741]
[1752913426940,1.12400429,118240.0,118230.0,0.72502741]
[1752913429443,0.76320429,118240.0,118230.0,0.72502741]
[1752913429640,1.12400429,118240.0,118230.0,0.72502741]
[1752913434351,0.76320429,118240.0,118230.0,0.72502741]
[1752913434545,1.12400429,118240.0,118230.0,0.72502741]
[1752913446458,0.97508884,118240.0,118230.0,0.72502741]
[1752913446660,1.12400429,118240.0,118230.0,0.72502741]
[1752913447460,0.97508884,118240.0,118230.0,0.72502741]
[1752913447654,1.12400429,118240.0,118230.0,0.72502741]
[1752913448156,1.12400429,118240.0,118230.0,0.57611196]
[1752913448460,1.12400429,118240.0,118230.0,0.72502741]
[1752913450561,0.97508884,118240.0,118230.0,0.72502741]
[1752913450859,1.12400429,118240.0,118230.0,0.72502741]
[1752913451361,1.12400429,118240.0,118230.0,0.57611196]
[1752913451557,1.12400429,118240.0,118230.0,0.72502741]
[1752913452762,0.76320429,118240.0,118230.0,0.72502741]
[1752913452962,1.12400429,118240.0,118230.0,0.72502741]
[1752913454058,0.97508884,118240.0,118230.0,0.72502741]
[1752913454362,1.12400429,118240.0,118230.0,0.72502741]
[1752913455864,1.12400429,118240.0,118230.0,0.57611196]
[1752913456164,1.12400429,118240.0,118230.0,0.72502741]
[1752913456365,0.76320429,118240.0,118230.0,0.72502741]
[1752913456565,1.12400429,118240.0,118230.0,0.72502741]
[1752913457161,1.12400429,118240.0,118230.0,0.57611196]
[1752913457365,1.12400429,118240.0,118230.0,0.72502741]
[1752913457767,1.12400429,118240.0,118230.0,0.57611196]
[1752913458067,1.12400429,118240.0,118230.0,0.72502741]
[1752913458968,0.76320429,118240.0,118230.0,0.72502741]
[1752913459269,1.12400429,118240.0,118230.0,0.72502741]
[1752913461076,0.76320429,118240.0,118230.0,0.72502741]
[1752913461276,1.12400429,118240.0,118230.0,0.72502741]
[1752913461578,1.12400429,118240.0,118230.0,0.57611196]
[1752913461767,1.12400429,118240.0,118230.0,0.72502741]
[1752913462279,1.12400429,118240.0,118230.0,0.57611196]
[1752913462480,1.12400429,118240.0,118230.0,0.72502741]
[1752913462979,1.12400429,118240.0,118230.0,0.74187655]
[1752913465779,1.12400429,118240.0,118230.0,0.5929611]
[1752913465980,1.12400429,118240.0,118230.0,0.74187655]
[1752913470187,0.97508884,118240.0,118230.0,0.74187655]
[1752913470484,1.12400429,118240.0,118230.0,0.74187655]
[1752913471588,1.12400429,118240.0,118230.0,0.5929611]
[1752913471787,1.12400429,118240.0,118230.0,0.74187655]
[1752913472786,0.76320429,118240.0,118230.0,0.74187655]
[1752913472986,1.12400429,118240.0,118230.0,0.74187655]
[1752913477891,0.76320429,118240.0,118230.0,0.74187655]
[1752913478092,1.12400429,118240.0,118230.0,0.74187655]
[1752913478991,0.76320429,118240.0,118230.0,0.74187655]
[1752913479193,1.12400429,118240.0,118230.0,0.74187655]
[1752913480592,0.97508884,118240.0,118230.0,0.74187655]
[1752913480792,1.12400429,118240.0,118230.0,0.74187655]
[1752913481490,1.12400429,118240.0,118230.0,0.5929611]
[1752913481689,1.12400429,118240.0,118230.0,0.74187655]
[1752913481891,0.76320429,118240.0,118230.0,0.74187655]
[1752913482090,1.12400429,118240.0,118230.0,0.74187655]
[1752913486099,1.29304699,118240.0,118230.0,0.74187655]
[1752913486299,1.12400429,118240.0,118230.0,0.74187655]
[1752913487398,0.76320429,118240.0,118230.0,0.74187655]
[1752913487594,1.12400429,118240.0,118230.0,0.74187655]
[1752913488095,1.12400429,118240.0,118230.0,0.1655043]
[1752913488393,1.67545521,118240.0,118230.0,0.13991399]
[1752913489194,1.68421572,118240.0,118230.0,0.13991399]
[1752913489398,0.1690713,118220.0,118210.0,0.3377104]
[1752913489591,1.79803104,118220.0,118210.0,0.3377104]
[1752913489898,1.79803104,118220.0,118210.0,0.2460121]
[1752913490498,1.86659074,118220.0,118210.0,0.2954421]
[1752913491702,1.86759074,118220.0,118210.0,0.2954421]
[1752913492194,0.1690854,118210.0,118200.0,0.2954503]
[1752913492495,0.1690997,118200.0,118190.0,0.3377413]
[1752913492702,1.45640369,118200.0,118190.0,0.3377413]
[1752913492896,1.45640369,118200.0,118190.0,0.2954634]
[1752913494203,1.45640369,118200.0,118190.0,0.2964634]
[1752913494598,1.45640369,118200.0,118190.0,0.3209034]
[1752913494998,1.15857279,118200.0,118190.0,0.3209034]
[1752913495301,1.45640369,118200.0,118190.0,0.3209034]
[1752913495504,1.45640369,118200.0,118190.0,0.3219034]
[1752913496396,1.09560369,118200.0,118190.0,0.3219034]
[1752913496602,1.51937279,118200.0,118190.0,0.3219034]
[1752913496800,1.81720369,118200.0,118190.0,0.3219034]
[1752913498204,1.80063485,118200.0,118190.0,0.3219034]
[1752913498403,1.5193541,118200.0,118190.0,0.3219034]
[1752913498703,1.817185,118200.0,118190.0,0.3219034]
[1752913499505,1.80063485,118200.0,118190.0,0.3219034]
[1752913499906,1.8171806,118200.0,118190.0,0.3219034]
[1752913501105,1.80063485,118200.0,118190.0,0.3219034]
[1752913501811,1.81717871,118200.0,118190.0,0.3539134]
[1752913502203,1.80063485,118200.0,118190.0,0.3539134]
[1752913502509,1.80063485,118200.0,118190.0,0.4103734]
[1752913503308,1.50280395,118200.0,118190.0,0.4103734]
[1752913503509,1.86756456,118200.0,118190.0,0.4103734]
[1752913503807,1.88410544,118200.0,118190.0,0.4103734]
[1752913504400,1.12208574,118200.0,118190.0,0.57110885]
[1752913504709,1.73499009,118200.0,118190.0,0.57110885]
[1752913505608,1.73499009,118200.0,118190.0,0.4221934]
[1752913505809,1.73499009,118200.0,118190.0,0.57110885]
[1752913508610,1.73499009,118200.0,118190.0,0.4221934]
[1752913508811,1.88390554,118200.0,118190.0,0.4221934]
[1752913510017,1.88378554,118200.0,118190.0,0.4221934]
[1752913512619,1.73487009,118200.0,118190.0,0.57110885]
[1752913512818,1.88378554,118200.0,118190.0,0.57110885]
[1752913513020,1.88378554,118200.0,118190.0,0.4221934]
[1752913513716,1.88378554,118200.0,118190.0,0.57110885]
[1752913515909,1.88378554,118200.0,118190.0,0.4221934]
[1752913516111,1.88378554,118200.0,118190.0,0.57110885]
[1752913516414,1.12208574,118200.0,118190.0,0.57110885]
[1752913516609,1.56557029,118200.0,118190.0,0.57110885]
[1752913517012,1.41665484,118200.0,118190.0,0.57110885]
[1752913517221,1.56557029,118200.0,118190.0,0.57110885]
[1752913519924,1.73467079,118200.0,118190.0,0.4221934]
[1752913520119,1.73467079,118200.0,118190.0,0.57110885]
[1752913521125,1.73467079,118200.0,118190.0,0.4221934]
[1752913521325,1.73467079,118200.0,118190.0,0.57110885]
[1752913521625,1.88358624,118200.0,118190.0,0.4221934]
[1752913525428,1.16198624,118200.0,118190.0,0.4221934]
[1752913525629,1.88358624,118200.0,118190.0,0.4221934]
[1752913525830,1.58575534,118200.0,118190.0,0.4221934]
[1752913526023,1.88358624,118200.0,118190.0,0.4221934]
[1752913528331,1.56557029,118200.0,118190.0,0.57110885]
[1752913528830,1.73467089,118200.0,118190.0,0.57110885]
[1752913529231,1.56557029,118200.0,118190.0,0.57110885]
[1752913530029,0.84397029,118200.0,118190.0,0.57110885]
[1752913530333,1.56557029,118200.0,118190.0,0.57110885]
[1752913530933,1.73467089,118200.0,118190.0,0.4221934]
[1752913531231,1.73467089,118200.0,118190.0,0.57110885]
[1752913531431,1.01307089,118200.0,118190.0,0.57110885]
[1752913531632,1.73467089,118200.0,118190.0,0.57110885]
[1752913532434,1.41665484,118200.0,118190.0,0.57110885]
[1752913532636,1.56557029,118200.0,118190.0,0.57110885]
[1752913533837,0.82425484,118200.0,118190.0,0.57110885]
[1752913534135,1.56505029,118200.0,118190.0,0.57110885]
[1752913536437,1.20425029,118200.0,118190.0,0.57110885]
[1752913539538,1.20425029,118200.0,118190.0,0.4221934]
[1752913539735,1.20425029,118200.0,118190.0,0.57110885]
[1752913542037,0.84345029,118200.0,118190.0,0.57110885]
[1752913542241,1.20425029,118200.0,118190.0,0.57110885]
[1752913553044,1.05533484,118200.0,118190.0,0.57110885]
[1752913553449,1.20425029,118200.0,118190.0,0.57110885]
[1752913557457,1.05533484,118200.0,118190.0,0.57110885]
[1752913557653,1.20425029,118200.0,118190.0,0.57110885]
[1752913557955,0.46345484,118200.0,118190.0,0.57110885]
[1752913558254,1.05465484,118200.0,118190.0,0.57110885]
[1752913560157,0.98772513,118200.0,118190.0,0.57110885]
[1752913567853,0.39652513,118200.0,118190.0,0.57110885]
[1752913568056,0.98740513,118200.0,118190.0,0.57110885]
[1752913569265,0.98745359,118200.0,118190.0,0.57110885]
[1752913584074,0.98745359,118200.0,118190.0,0.4221934]
[1752913584275,1.13636904,118200.0,118190.0,0.4221934]
[1752913584577,1.13636904,118200.0,118190.0,0.57110885]
[1752913588777,0.98745359,118200.0,118190.0,0.57110885]
[1752913589677,0.39657359,118200.0,118190.0,0.57110885]
[1752913589879,0.98689359,118200.0,118190.0,0.57110885]
[1752913593781,0.62609359,118200.0,118190.0,0.57110885]
[1752913593980,0.98689359,118200.0,118190.0,0.57110885]
[1752913597378,0.03577359,118200.0,118190.0,0.7200243]
[1752913597581,4e-08,118200.0,118190.0,1.0808243]
[1752913597882,0.3608,118220.0,118210.0,0.4146862]
[1752913598078,0.95088,118220.0,118210.0,0.56360165]
[1752913598380,1.09979545,118220.0,118210.0,0.56360165]
[1752913598782,0.95088,118220.0,118210.0,0.56360165]
[1752913600977,0.95188,118220.0,118210.0,0.56360165]
[1752913601686,0.3618,118220.0,118210.0,0.7125171]
[1752913601979,0.95176,118220.0,118210.0,0.7125171]
[1752913602179,0.95176,118220.0,118210.0,0.56360165]
[1752913603083,0.95176,118220.0,118210.0,0.56460165]
[1752913604282,0.95076,118220.0,118210.0,0.56460165]
[1752913605690,0.95076,118220.0,118210.0,0.7135171]
[1752913606189,0.95076,118220.0,118210.0,0.78083446]
[1752913607689,0.95076,118220.0,118210.0,0.63191901]
[1752913609690,0.96726534,118220.0,118210.0,0.63191901]
[1752913610292,0.96726534,118220.0,118210.0,0.78083446]
[1752913610496,0.98635238,118220.0,118210.0,0.78083446]
[1752913610682,0.98635238,118220.0,118210.0,0.48300356]
[1752913610885,0.98635238,118220.0,118210.0,0.63191901]
[1752913611295,0.98635238,118220.0,118210.0,0.48300356]
[1752913611495,0.98635238,118220.0,118210.0,0.63191901]
[1752913614889,0.98635238,118220.0,118210.0,0.48300356]
[1752913615094,0.98635238,118220.0,118210.0,0.63191901]
[1752913616796,0.39639238,118220.0,118210.0,0.63191901]
[1752913617104,0.98591238,118220.0,118210.0,0.63191901]
[1752913617498,1.13482783,118220.0,118210.0,0.50017162]
[1752913617700,0.98591238,118220.0,118210.0,0.64908707]
[1752913617989,1.13482783,118220.0,118210.0,0.64908707]
[1752913618696,0.98591238,118220.0,118210.0,0.64908707]
[1752913620097,1.13482783,118220.0,118210.0,0.64908707]
[1752913620595,0.98591238,118220.0,118210.0,0.64908707]
[1752913621696,1.13482783,118220.0,118210.0,0.64908707]
[1752913624399,0.77402783,118220.0,118210.0,0.64908707]
[1752913624601,1.13482783,118220.0,118210.0,0.64908707]
[1752913625095,0.98591238,118220.0,118210.0,0.64908707]
[1752913626103,1.13482783,118220.0,118210.0,0.64908707]
[1752913627701,0.98591238,118220.0,118210.0,0.64908707]
[1752913628404,0.62511238,118220.0,118210.0,0.64908707]
[1752913628609,0.98591238,118220.0,118210.0,0.64908707]
[1752913629305,1.13482783,118220.0,118210.0,0.64908707]
[1752913631703,0.98591238,118220.0,118210.0,0.64908707]
[1752913635108,0.98591238,118220.0,118210.0,0.50017162]
[1752913635407,0.98591238,118220.0,118210.0,0.64908707]
[1752913638911,0.98591238,118220.0,118210.0,0.50017162]
[1752913639212,1.13482783,118220.0,118210.0,0.64908707]
[1752913639710,0.98591238,118220.0,118210.0,0.64908707]
[1752913640811,0.96940704,118220.0,118210.0,0.64908707]
[1752913643020,0.96940704,118220.0,118210.0,0.50017162]
[1752913643320,0.96940704,118220.0,118210.0,0.64908707]
[1752913643516,0.96940704,118220.0,118210.0,0.50017162]
[1752913643718,0.96940704,118220.0,118210.0,0.64908707]
[1752913644015,0.96940704,118220.0,118210.0,0.58176971]
[1752913644220,1.11832249,118220.0,118210.0,0.58176971]
[1752913644416,1.28739439,118220.0,118210.0,0.43285426]
[1752913644820,1.11832249,118220.0,118210.0,0.58176971]
[1752913645120,1.28739439,118220.0,118210.0,0.58176971]
[1752913646822,1.11832249,118220.0,118210.0,0.58176971]
[1752913647115,1.11832249,118220.0,118210.0,0.43285426]
[1752913649621,1.11832249,118220.0,118210.0,0.58176971]
[1752913653328,1.11832249,118220.0,118210.0,0.43285426]
[1752913653629,1.11832249,118220.0,118210.0,0.58176971]
[1752913654029,1.43630984,118220.0,118210.0,0.33904426]
[1752913654229,1.43630984,118220.0,118210.0,0.31705426]
[1752913655626,1.43630984,118220.0,118210.0,0.34031426]
[1752913658531,1.43630984,118220.0,118210.0,0.48922971]
[1752913660028,1.43630984,118220.0,118210.0,0.34031426]
[1752913661432,1.07550984,118220.0,118210.0,0.34031426]
[1752913661634,1.79710984,118220.0,118210.0,0.34031426]
[1752913664737,1.79710984,118220.0,118210.0,0.48922971]
[1752913666342,1.64819439,118220.0,118210.0,0.48922971]
[1752913666943,0.92659439,118220.0,118210.0,0.48922971]
[1752913667143,1.64819439,118220.0,118210.0,0.48922971]
[1752913669943,1.79710984,118220.0,118210.0,0.48922971]
[1752913670337,1.79710984,118220.0,118210.0,0.34031426]
[1752913670539,1.79710984,118220.0,118210.0,0.31705426]
[1752913672144,1.79710984,118220.0,118210.0,0.34031426]
[1752913678751,1.07550984,118220.0,118210.0,0.34031426]
[1752913679052,1.79710984,118220.0,118210.0,0.34031426]
[1752913679952,1.07550984,118220.0,118210.0,0.34031426]
[1752913680153,1.79710984,118220.0,118210.0,0.34031426]
[1752913682154,1.79710984,118220.0,118210.0,0.3231462]
[1752913685250,1.49927894,118220.0,118210.0,0.3231462]
[1752913685555,1.79710984,118220.0,118210.0,0.3231462]
[1752913686654,1.49927894,118220.0,118210.0,0.3231462]
[1752913686855,1.79710984,118220.0,118210.0,0.3231462]
[1752913688758,1.79710984,118220.0,118210.0,0.3547962]
[1752913688957,1.79710984,118220.0,118210.0,0.4080162]
[1752913689458,1.79710984,118220.0,118210.0,0.4190262]
[1752913689658,1.79710984,118220.0,118210.0,0.56794165]
[1752913689858,1.79710984,118220.0,118210.0,0.4190262]
[1752913691862,1.49927894,118220.0,118210.0,0.4190262]
[1752913692063,1.79710984,118220.0,118210.0,0.4190262]
[1752913692763,1.07550984,118220.0,118210.0,0.4190262]
[1752913692964,1.79710984,118220.0,118210.0,0.4190262]
[1752913696566,1.79574984,118220.0,118210.0,0.4190262]
[1752913697367,1.07414984,118220.0,118210.0,0.4190262]
[1752913697567,1.79574984,118220.0,118210.0,0.4190262]
[1752913703274,1.79574984,118220.0,118210.0,0.56794165]
[1752913704378,1.49791894,118220.0,118210.0,0.56794165]
[1752913704676,1.79574984,118220.0,118210.0,0.4190262]
[1752913704878,1.79574984,118220.0,118210.0,0.56794165]
[1752913705874,1.07414984,118220.0,118210.0,0.56794165]
[1752913706079,1.79574984,118220.0,118210.0,0.56794165]
[1752913706977,1.79574984,118220.0,118210.0,0.4190262]
[1752913707178,1.79574984,118220.0,118210.0,0.56794165]
[1752913707379,1.49791894,118220.0,118210.0,0.56794165]
[1752913707578,1.79574984,118220.0,118210.0,0.56794165]
[1752913709079,1.62667794,118220.0,118210.0,0.56794165]
[1752913710182,1.47776249,118220.0,118210.0,0.56794165]
[1752913712786,1.64683439,118220.0,118210.0,0.56794165]
[1752913716389,1.64683439,118220.0,118210.0,0.4190262]
[1752913716590,1.64683439,118220.0,118210.0,0.56794165]
[1752913717992,1.79574984,118220.0,118210.0,0.56794165]
[1752913719192,1.64683439,118220.0,118210.0,0.56794165]